bitfinex-derivatives/quotes_ETHF0:USTF0_20250917
["timestamp","ask_amount","ask_price","bid_price","bid_amount"]
[1758074613734,0.694,4512.2,4512.1,3.9459]
[1758074618441,0.223,4512.4,4512.3,0.7381]
[1758074619252,0.2942,4512.7,4512.5,0.1167]
[1758074619443,31.922,4512.9,4512.8,0.4254]
[1758074619745,32.145,4512.9,4512.8,0.7381]
[1758074619942,32.6421,4512.9,4512.8,0.7381]
[1758074620346,0.2942,4513.9,4513.3,0.4254]
[1758074620541,1.46668785,4513.8,4513.7,0.7381]
[1758074620735,1.46668785,4513.8,4513.7,0.526]
[1758074620940,1.46668785,4513.8,4513.1,0.3127]
[1758074621146,0.4971,4513.2,4513.1,0.7381]
[1758074622249,0.2029,4513.2,4513.1,0.7381]
[1758074622550,0.2942,4513.4,4513.1,0.7381]
[1758074622742,0.2942,4513.4,4513.2,0.3127]
[1758074622942,3.7315,4514.0,4513.9,0.7381]
[1758074623147,4.50386522,4514.0,4513.9,0.7381]
[1758074623548,4.79806522,4514.0,4513.6,0.3127]
[1758074623851,0.694,4513.7,4513.6,0.526]
[1758074624539,0.694,4513.7,4513.6,0.7381]
[1758074641668,0.694,4513.7,4513.6,0.526]
[1758074642567,0.694,4513.7,4513.6,0.2133]
[1758074642863,0.8263,4513.5,4513.4,0.0221]
[1758074643074,4.2571,4513.5,4513.4,0.0221]
[1758074643371,4.2571,4513.5,4512.9,0.3053]
[1758074643573,0.4072,4513.0,4512.9,0.5057]
[1758074643775,0.6981,4513.0,4512.9,0.5057]
[1758074644074,0.6981,4513.0,4512.9,0.7141]
[1758074645067,0.223,4513.2,4512.9,0.7141]
[1758074645272,0.7233,4513.2,4513.1,0.7141]
[1758074645574,0.9211,4513.2,4513.1,0.7141]
[1758074651370,0.223,4513.4,4513.3,0.4088]
[1758074651576,0.223,4513.4,4513.3,1.49950782]
[1758074653183,0.6981,4513.4,4513.3,0.5057]
[1758074653382,0.6981,4513.4,4513.3,0.2004]
[1758074654181,0.6981,4513.4,4513.3,0.7141]
[1758074655085,1.24685041,4513.4,4513.3,0.7141]
[1758074657584,0.54875041,4513.4,4513.3,0.7141]
[1758074658377,1.24685041,4513.4,4513.3,0.7141]
[1758074658578,1.24685041,4513.4,4513.3,0.2004]
[1758074659778,1.24685041,4513.4,4513.3,0.5057]
[1758074660980,1.24685041,4513.4,4513.3,0.7141]
[1758074664290,0.54875041,4513.4,4513.3,0.7141]
[1758074664688,0.75815041,4513.4,4513.3,0.7141]
[1758074664888,1.04905041,4513.4,4513.3,0.7141]
[1758074665187,0.5003,4513.4,4513.3,0.7141]
[1758074667390,0.6981,4513.4,4513.3,0.7141]
[1758074667687,0.6981,4513.3,4513.2,3.2078]
[1758074668985,0.6981,4513.3,4513.1,0.0221]
[1758074669291,0.3186,4512.1,4511.9,3.5078]
[1758074669480,0.8564,4512.0,4511.9,3.7134]
[1758074669882,0.8564,4512.0,4511.9,3.4134]
[1758074670086,0.3186,4511.9,4511.4,3.2078]
[1758074670285,0.7369,4511.5,4511.4,3.7134]
[1758074670787,0.8564,4511.5,4511.4,3.7134]
[1758074671188,0.8564,4511.5,4511.4,3.4134]
[1758074671787,0.8564,4511.5,4511.4,3.7134]
[1758074675792,0.8564,4511.5,4511.4,3.9248]
[1758074676291,0.7369,4511.5,4511.4,3.9248]
[1758074676495,0.2146,4511.9,4511.8,0.717]
[1758074676697,0.223,4511.9,4511.8,1.50240782]
[1758074677991,0.2146,4512.1,4512.0,0.5376]
[1758074678191,3.741,4512.4,4512.3,0.417]
[1758074678486,3.964,4512.4,4512.3,0.717]
[1758074680197,4.1677,4512.4,4512.3,0.717]
[1758074681595,41.1186,4512.7,4512.3,1.20240782]
[1758074681802,41.5369,4512.7,4512.6,0.717]
[1758074681996,41.7599,4512.7,4512.6,0.717]
[1758074682299,0.9599,4512.7,4512.6,0.717]
[1758074686200,1.74530782,4512.7,4512.6,0.5056]
[1758074689811,1.74530782,4512.7,4512.6,0.717]
[1758074690602,1.74530782,4512.7,4512.6,0.2056]
[1758074690908,0.8564,4512.5,4512.4,0.5056]
[1758074691100,1.0794,4512.5,4512.4,0.717]
[1758074691301,0.9599,4512.5,4512.4,0.717]
[1758074692110,0.4376,4512.5,4512.4,0.717]
[1758074692405,0.7562,4512.5,4512.4,0.717]
[1758074692609,0.9599,4512.5,4512.4,0.717]
[1758074693505,0.8564,4512.0,4511.6,0.3]
[1758074693805,0.1195,4511.5,4511.4,3.2078]
[1758074694000,0.7562,4511.5,4511.4,3.9248]
[1758074694205,0.9599,4511.5,4511.4,3.9248]
[1758074695613,0.2146,4511.5,4511.4,3.9248]
[1758074695915,0.223,4511.5,4511.4,3.9248]
[1758074698405,0.4299,4511.5,4511.4,3.9248]
[1758074698710,0.223,4511.5,4511.4,3.9248]
[1758074699813,0.7207,4511.8,4511.7,0.6847]
[1758074700013,0.9437,4511.8,4511.7,0.6847]
[1758074703317,0.63,4511.8,4511.4,3.2078]
[1758074703514,0.407,4511.6,4511.5,0.291]
[1758074703814,0.7207,4511.6,4511.5,0.4876]
[1758074704418,0.7207,4511.6,4511.5,0.6847]
[1758074705313,0.1959,4511.6,4511.5,0.8035]
[1758074705515,0.7326,4511.8,4511.7,0.6847]
[1758074705715,0.223,4511.8,4511.7,0.3937]
[1758074706320,0.223,4511.8,4511.7,0.6847]
[1758074707815,40.9959,4512.5,4512.4,0.6847]
[1758074708023,42.32196862,4512.5,4512.4,0.6847]
[1758074708214,1.52196862,4512.5,4512.4,0.6847]
[1758074708723,1.64636862,4512.5,4511.5,0.1188]
[1758074708914,0.1959,4511.7,4511.6,0.6847]
[1758074709218,0.5096,4511.7,4511.6,0.6847]
[1758074710421,0.3137,4512.0,4511.6,0.6847]
[1758074710719,0.223,4512.1,4512.0,0.8035]
[1758074710923,3.4308,4512.2,4512.0,0.8035]
[1758074711117,3.4308,4512.2,4512.1,0.3937]
[1758074711318,4.00895495,4512.2,4512.1,0.6847]
[1758074711817,0.80115495,4512.2,4512.1,0.6847]
[1758074712024,0.223,4512.4,4512.2,0.291]
[1758074712319,31.913,4512.8,4512.3,0.3937]
[1758074712522,3.2078,4513.9,4513.0,0.1188]
[1758074712822,0.7207,4513.5,4513.4,0.6847]
[1758074713018,1.42334386,4513.5,4512.9,3.2078]
[1758074713217,0.7207,4513.2,4513.1,0.4876]
[1758074713417,1.29894386,4513.2,4513.1,0.4876]
[1758074715025,1.29894386,4513.2,4512.5,1.06208162]
[1758074715227,0.5096,4512.7,4512.6,0.6847]
[1758074715521,0.7207,4512.7,4512.6,0.4876]
[1758074715724,0.7207,4512.7,4512.6,0.6847]
[1758074715921,0.3137,4513.2,4512.7,0.291]
[1758074716127,3.7174,4513.3,4513.2,0.6847]
[1758074716326,4.51214108,4513.3,4513.2,0.6847]
[1758074716724,1.30434108,4513.3,4513.2,0.6847]
[1758074717030,1.08134108,4513.3,4513.2,0.6847]
[1758074717325,0.57174108,4513.3,4513.2,0.6847]
[1758074717530,3.5215,4513.9,4513.7,0.291]
[1758074717829,3.5215,4513.9,4513.7,0.6847]
[1758074717830,1.30431008,4513.8,4513.7,0.6847]
[1758074718224,0.9437,4513.8,4513.7,0.6847]
[1758074719821,0.7326,4513.9,4513.8,0.6847]
[1758074720025,0.9437,4513.9,4513.8,0.6847]
[1758074722833,0.3137,4514.2,4513.8,1.33698162]
[1758074723028,0.4189,4514.1,4514.0,0.8035]
[1758074723328,0.7326,4514.1,4514.0,0.8035]
[1758074723529,0.9437,4514.1,4514.0,0.8035]
[1758074724532,0.9437,4514.1,4514.0,0.6847]
[1758074724834,0.7207,4513.8,4513.7,0.4876]
[1758074725135,0.7207,4513.8,4513.7,0.1966]
[1758074725524,0.7207,4513.8,4513.4,0.291]
[1758074725726,0.7207,4513.4,4513.3,0.0221]
[1758074725933,0.9437,4513.4,4513.3,0.0221]
[1758074726135,0.7207,4512.3,4512.2,3.6954]
[1758074726328,0.9437,4512.3,4512.2,3.2078]
[1758074726731,0.3137,4511.8,4511.6,3.4988]
[1758074726932,0.7207,4511.7,4511.6,3.6959]
[1758074727134,0.7207,4511.7,4511.6,3.8925]
[1758074729028,0.7207,4511.7,4511.6,3.2078]
[1758074729936,0.7207,4511.7,4511.2,0.0221]
[1758074730130,0.7207,4511.7,4511.3,0.3098]
[1758074730433,0.2928,4511.3,4511.2,0.0221]
[1758074730637,0.6895,4511.3,4511.2,0.0221]
[1758074732737,0.6895,4511.3,4510.6,0.3098]
[1758074733539,0.1967,4510.6,4510.5,4.0571]
[1758074733735,0.4895,4510.9,4510.8,0.4104]
[1758074734037,0.4895,4510.9,4510.8,0.7202]
[1758074734228,0.6895,4510.9,4510.8,0.7202]
[1758074735937,0.3967,4510.9,4510.8,0.7202]
[1758074736138,0.4197,4511.1,4511.0,0.4389]
[1758074736439,0.9125,4511.1,4511.0,0.7202]
[1758074736842,0.9125,4511.1,4511.0,3.928]
[1758074737647,0.9125,4511.1,4511.0,4.0571]
[1758074738542,3.8973,4511.7,4511.6,0.4104]
[1758074738745,3.8973,4511.7,4511.6,0.7202]
[1758074738944,4.1203,4511.7,4511.6,0.7202]
[1758074739544,4.1203,4511.7,4511.6,0.5148]
[1758074739749,3.8275,4511.7,4511.2,0.94328162]
[1758074739945,3.8275,4511.7,4511.3,0.5148]
[1758074739946,0.6895,4511.4,4511.3,0.5148]
[1758074740250,0.6895,4511.4,4511.3,0.7202]
[1758074740747,0.6895,4511.4,4511.3,0.205]
[1758074740945,0.3967,4511.1,4511.0,3.2078]
[1758074741150,0.6895,4511.1,4511.0,3.2078]
[1758074741748,0.6895,4511.1,4511.0,3.7226]
[1758074742142,0.6895,4511.1,4511.0,3.928]
[1758074743244,0.3967,4511.1,4511.0,4.0571]
[1758074743754,0.1967,4511.1,4511.0,4.0571]
[1758074744944,0.4895,4511.4,4511.3,0.4104]
[1758074745150,0.6895,4511.4,4511.3,0.7202]
[1758074746749,0.1967,4511.4,4511.3,0.7202]
[1758074746940,3.5006,4511.7,4511.5,0.1291]
[1758074747146,0.9125,4511.6,4511.5,0.8493]
[1758074747346,0.9125,4511.6,4511.5,0.7202]
[1758074748752,0.1228,4511.5,4511.1,0.5148]
[1758074748956,0.6895,4511.2,4511.1,0.5148]
[1758074749144,0.6895,4511.2,4511.1,0.7202]
[1758074751650,0.6895,4511.2,4511.1,0.205]
[1758074751959,0.6895,4510.8,4510.5,3.5176]
[1758074752155,0.9125,4510.8,4510.5,3.5176]
[1758074752355,0.9125,4510.8,4510.5,0.3098]
[1758074752657,0.9125,4510.8,4510.1,0.3098]
[1758074756162,0.9125,4510.8,4510.2,0.0221]
[1758074756357,0.9125,4510.8,4510.3,0.3008]
[1758074756749,0.9125,4510.8,4510.2,0.0221]
[1758074756965,0.9125,4510.8,4510.3,0.3008]
[1758074757350,0.9125,4510.8,4510.2,0.0221]
[1758074759554,0.9125,4510.8,4510.3,0.3169]
[1758074759755,0.9125,4510.8,4510.2,0.0221]
[1758074760757,0.1967,4510.8,4510.7,0.7103]
[1758074760959,0.4197,4510.8,4510.7,0.7103]
[1758074761260,0.7193,4510.8,4510.7,0.7103]
[1758074761461,0.9328,4510.8,4510.7,0.7103]
[1758074769172,0.7098,4510.8,4510.7,1.49668247]
[1758074769371,0.2103,4511.5,4511.4,0.7103]
[1758074769570,0.223,4511.5,4511.4,1.49668247]
[1758074770775,0.9464,4511.5,4511.4,0.7103]
[1758074772374,0.7234,4511.5,4511.4,0.7103]
[1758074772673,3.4181,4511.9,4511.8,0.7103]
[1758074772876,0.4333,4511.9,4511.8,0.7103]
[1758074773172,0.9464,4511.9,4511.8,0.7103]
[1758074774774,0.223,4511.9,4511.8,0.7103]
[1758074775177,0.2996,4512.8,4512.3,0.3169]
[1758074775479,1.3013129,4512.7,4512.6,0.7103]
[1758074775681,1.5148129,4512.7,4512.6,0.7103]
[1758074776476,0.2103,4512.7,4512.6,0.7103]
[1758074776775,0.223,4512.8,4512.7,0.7103]
[1758074776981,3.4308,4512.9,4512.8,0.7103]
[1758074777478,4.1542,4512.9,4512.8,0.7103]
[1758074777876,0.7234,4512.4,4512.3,3.4045]
[1758074778077,0.7234,4512.4,4510.5,2.89407099]
[1758074778078,0.2103,4511.9,4511.8,0.7103]
[1758074778278,0.5099,4511.9,4511.8,0.7103]
[1758074778684,0.7234,4511.9,4511.8,0.7103]
[1758074781674,0.4238,4511.9,4511.7,3.2078]
[1758074781878,0.1268,4512.0,4511.7,3.2078]
[1758074781879,1.50978247,4511.8,4511.7,3.2078]
[1758074782986,1.50978247,4511.8,4511.6,0.339]
[1758074783587,0.7234,4511.8,4511.7,0.5136]
[1758074784384,0.4238,4511.8,4511.3,0.78638247]
[1758074784580,3.4308,4511.9,4511.6,0.1967]
[1758074784787,0.7234,4511.7,4511.6,0.5136]
[1758074785387,0.7234,4511.7,4511.6,0.7103]
[1758074787284,0.2103,4511.7,4511.6,1.49668247]
[1758074787588,4.1542,4511.9,4511.8,0.7103]
[1758074791282,4.1542,4511.9,4511.5,0.3071]
[1758074791991,4.1542,4511.9,4511.8,0.2151]
[1758074792192,4.1542,4511.9,4511.8,0.5222]
[1758074792789,4.1542,4511.9,4511.8,0.7255]
[1758074792992,0.9464,4511.9,4511.8,0.7255]
[1758074794291,3.2078,4512.6,4512.0,0.1194]
[1758074794292,0.292,4512.3,4512.0,0.1194]
[1758074794493,3.2078,4512.6,4512.5,0.5378]
[1758074794693,4.1241,4512.6,4512.5,0.8449]
[1758074795093,0.9163,4512.6,4512.5,0.8449]
[1758074795395,0.9163,4512.6,4512.5,0.7255]
[1758074795989,0.9163,4512.6,4512.5,0.8449]
[1758074796394,0.2067,4512.6,4512.5,1.63128247]
[1758074796601,3.2078,4513.3,4512.5,1.63128247]
[1758074796602,3.9011,4513.3,4513.2,0.7255]
[1758074796789,4.6936889,4513.3,4513.2,0.7255]
[1758074796987,3.2078,4513.3,4513.2,0.7255]
[1758074797198,0.4987,4513.8,4513.7,0.7255]
[1758074797495,0.7217,4513.8,4513.7,0.7255]
[1758074797797,0.4297,4513.8,4513.7,0.7255]
[1758074798599,0.7217,4513.8,4513.7,0.7255]
[1758074799301,0.9163,4513.8,4513.7,0.7255]
[1758074800394,0.2067,4513.3,4513.2,0.2151]
[1758074800593,0.4987,4513.3,4513.2,0.7255]
[1758074801290,0.292,4513.7,4513.2,0.7255]
[1758074801487,0.9163,4513.8,4513.7,0.4184]
[1758074801694,0.9163,4513.8,4513.7,0.7255]
[1758074802001,0.9163,4513.8,4513.7,0.2151]
[1758074802404,0.9163,4513.8,4513.4,0.3071]
[1758074802694,0.6243,4513.8,4513.7,0.2151]
[1758074802894,0.2067,4513.8,4513.7,0.7255]
[1758074803203,0.9163,4513.8,4513.7,0.7255]
[1758074804702,1.70268247,4513.8,4513.1,0.3071]
[1758074805199,0.1218,4513.5,4513.1,0.3071]
[1758074805404,0.6933,4513.2,4513.1,0.5222]
[1758074805999,0.6933,4513.2,4513.1,0.7255]
[1758074806393,1.47968247,4513.2,4512.9,3.2299]
[1758074806593,3.6091,4513.0,4512.0,0.1194]
[1758074806795,3.2078,4512.5,4512.0,0.1194]
[1758074807099,42.37276494,4512.1,4511.4,0.3071]
[1758074807303,3.99418247,4511.6,4511.4,0.3071]
[1758074807601,4.56243827,4511.6,4511.5,0.4265]
[1758074807798,3.4318,4511.6,4511.5,0.8449]
[1758074810502,3.4318,4511.6,4511.5,0.6416]
[1758074810902,3.4318,4511.6,4511.5,0.8449]
[1758074814400,3.4318,4511.6,4511.5,0.4265]
[1758074815401,3.4318,4511.6,4511.5,0.6416]
[1758074815904,3.4318,4511.6,4511.5,0.8541]
[1758074817809,3.2078,4511.6,4511.5,0.8541]
[1758074818108,3.4318,4511.6,4511.5,0.8541]
[1758074820307,3.4318,4511.6,4511.5,0.4265]
[1758074823611,3.2078,4511.6,4511.5,0.8298]
[1758074823812,3.4318,4511.6,4511.5,0.8298]
[1758074824012,3.4318,4511.6,4511.5,0.4265]
[1758074825509,3.4318,4511.6,4511.5,0.8298]
[1758074827013,3.2078,4511.6,4511.5,0.8298]
[1758074827213,3.4318,4511.6,4511.5,0.8298]
[1758074829413,3.4318,4511.6,4511.5,0.4265]
[1758074829810,4.37567089,4511.6,4511.5,0.4265]
[1758074830009,8.37567089,4511.6,4511.5,0.4265]
[1758074831414,8.95400431,4511.6,4511.5,0.4265]
[1758074831813,3.78613342,4511.6,4511.5,0.6231]
[1758074832018,4.01013342,4511.6,4511.5,0.6231]
[1758074832412,4.01013342,4511.6,4511.5,0.4265]
[1758074833211,4.01013342,4511.6,4511.5,0.6231]
[1758074833411,4.01013342,4511.6,4511.5,0.8298]
[1758074836717,3.78613342,4511.6,4511.5,0.8298]
[1758074836918,4.01013342,4511.6,4511.5,0.8298]
[1758074839613,4.01013342,4511.6,4511.5,0.4265]
[1758074846026,4.95400431,4511.6,4511.5,0.4265]
[1758074848922,4.95400431,4511.6,4511.5,0.6231]
[1758074851130,3.78613342,4511.6,4511.5,0.8318]
[1758074851529,4.00913342,4511.6,4511.5,0.8318]
[1758074853632,4.00913342,4511.6,4511.5,0.6231]
[1758074854327,4.00913342,4511.6,4511.5,0.4265]
[1758074859336,5.77861794,4511.6,4511.5,0.4265]
[1758074861752,5.77861794,4511.6,4511.5,0.6369]
[1758074862047,4.00913342,4511.6,4511.5,0.8456]
[1758074865455,3.78613342,4511.6,4511.5,0.8456]
[1758074865650,4.95300431,4511.6,4511.5,0.8456]
[1758074866053,4.95300431,4511.6,4511.5,0.6369]
[1758074866943,4.95300431,4511.6,4510.5,0.3298]
[1758074867251,3.2078,4510.6,4510.5,0.3298]
[1758074867447,44.80913342,4510.6,4510.5,0.5385]
[1758074868955,44.80913342,4510.6,4510.5,0.8517]
[1758074871154,3.78613342,4510.6,4510.5,1.79557089]
[1758074871354,4.00913342,4510.6,4510.5,1.79557089]
[1758074874865,3.4308,4510.6,4510.5,1.79557089]
[1758074875065,4.01247483,4510.6,4510.5,1.79557089]
[1758074875764,4.01247483,4510.6,4510.5,0.8517]
[1758074878468,4.01247483,4510.6,4510.5,4.8517]
[1758074880164,3.78947483,4510.6,4510.5,4.8517]
[1758074880367,3.2078,4510.6,4510.5,4.8517]
[1758074880568,3.2078,4511.2,4511.1,0.7192]
[1758074880762,4.01255343,4511.2,4511.1,1.66307089]
[1758074881264,3.78955343,4511.2,4511.1,1.66307089]
[1758074881460,4.01255343,4511.2,4511.1,1.66307089]
[1758074881770,3.4308,4511.2,4511.1,1.66307089]
[1758074882165,4.01050613,4511.2,4511.1,1.66307089]
[1758074882365,3.4308,4511.2,4511.1,1.66307089]
[1758074883666,3.2078,4511.2,4511.1,1.66307089]
[1758074883971,3.4308,4511.2,4511.1,1.50530322]
[1758074886164,3.4308,4511.2,4511.1,0.5149]
[1758074886474,4.01096013,4511.2,4511.1,0.3106]
[1758074887866,4.01096013,4511.2,4511.0,0.1205]
[1758074888069,1.36626335,4511.1,4511.0,0.4311]
[1758074892569,1.36626335,4511.1,4511.0,0.6354]
[1758074892769,0.58016013,4511.1,4511.0,0.8397]
[1758074893774,0.80316013,4511.1,4511.0,0.8397]
[1758074904884,1.58926335,4511.1,4511.0,0.4311]
[1758074911782,1.58926335,4511.1,4511.0,0.628]
[1758074916588,1.58926335,4511.1,4511.0,0.8405]
[1758074919591,1.58926335,4511.1,4511.0,0.628]
[1758074919791,1.58926335,4511.1,4511.0,0.4311]
[1758074920491,1.58926335,4511.1,4511.0,0.628]
[1758074921794,1.58926335,4511.1,4511.0,0.8405]
[1758074925295,1.58926335,4511.1,4511.0,0.628]
[1758074925496,1.58926335,4511.1,4511.0,0.4311]
[1758074926698,1.58926335,4511.1,4511.0,0.628]
[1758074927598,1.58926335,4511.1,4511.0,0.8405]
[1758074929600,0.80316013,4511.1,4511.0,0.8405]
[1758074929799,0.58016013,4511.1,4511.0,0.8405]
[1758074930001,0.80316013,4511.1,4511.0,0.8405]
[1758074931802,0.80316013,4511.1,4511.0,0.628]
[1758074932504,0.80316013,4511.1,4511.0,0.8405]
[1758074935104,0.80316013,4511.1,4511.0,0.4311]
[1758074936806,41.60316013,4511.1,4511.0,0.4311]
[1758074937408,0.067,4510.1,4510.0,0.3189]
[1758074937599,4.39280322,4510.1,4509.5,0.1205]
[1758074937803,3.2078,4509.6,4509.5,0.5243]
[1758074938106,4.01096013,4509.6,4509.5,0.5243]
[1758074939409,3.4308,4509.6,4509.5,0.8199]
[1758074941313,0.223,4509.6,4509.5,0.8199]
[1758074944215,3.2078,4510.1,4510.0,0.1227]
[1758074944421,3.78778962,4510.1,4510.0,0.8271]
[1758074944618,4.01078962,4510.1,4510.0,0.8271]
[1758074945419,4.20468962,4510.1,4510.0,0.8271]
[1758074948825,3.98168962,4510.1,4510.0,0.8271]
[1758074949124,4.20468962,4510.1,4510.0,0.8271]
[1758074950524,3.2078,4510.1,4510.0,0.8271]
[1758074950717,3.4308,4510.1,4510.0,0.8271]
[1758074953826,3.2078,4510.1,4510.0,0.8271]
[1758074954027,3.4308,4510.1,4510.0,0.8271]
[1758074955328,3.6247,4510.1,4510.0,0.8271]
[1758074955729,0.4169,4510.1,4510.0,0.8271]
[1758074957424,0.223,4510.1,4510.0,0.8271]
[1758074958031,3.2078,4510.7,4510.0,0.5315]
[1758074958231,3.2078,4510.7,4510.5,0.5315]
[1758074958432,3.2078,4510.7,4510.6,0.7044]
[1758074958632,4.20405728,4510.7,4510.6,0.7044]
[1758074959234,4.41395728,4510.7,4510.6,0.7044]
[1758074959434,4.57555728,4510.7,4510.6,0.7044]
[1758074959733,4.41395728,4510.7,4510.6,0.7044]
[1758074961235,3.8346,4510.7,4510.6,0.7044]
[1758074968837,3.2078,4510.7,4510.6,1.64845754]
[1758074969036,3.4308,4510.7,4510.6,1.64845754]
[1758074969635,3.6375,4510.7,4510.6,1.64845754]
[1758074970738,3.6375,4510.7,4510.6,0.7044]
[1758074970939,3.8356,4510.7,4510.6,0.7044]
[1758074971140,0.6278,4510.7,4510.6,0.7044]
[1758074972845,0.7893,4510.7,4510.6,0.2956]
[1758074973943,0.7893,4510.7,4510.0,1.08885754]
[1758074974241,0.5663,4510.2,4510.1,0.314]
[1758074975040,0.1615,4510.1,4509.9,1.795]
[1758074975236,0.5663,4510.0,4509.9,1.795]
[1758074975746,0.5663,4510.0,4509.9,0.5232]
[1758074976143,0.4048,4510.0,4509.9,0.5232]
[1758074976344,0.4048,4510.0,4509.9,0.7301]
[1758074979545,0.5663,4510.0,4509.5,3.3283]
[1758074979846,0.4048,4509.7,4509.6,0.314]
[1758074980046,0.5663,4509.7,4509.6,0.314]
[1758074981137,0.5663,4509.7,4509.6,0.5232]
[1758074981948,0.5663,4509.7,4509.6,0.314]
[1758074984352,0.4048,4509.7,4509.6,0.7301]
[1758074985247,0.5663,4509.7,4509.6,0.7301]
[1758074986951,0.4048,4509.7,4509.6,0.7301]
[1758074991058,3.4145,4510.1,4510.0,0.8535]
[1758074991255,4.41461853,4510.1,4510.0,0.8535]
[1758074991456,4.57611853,4510.1,4510.0,0.6466]
[1758074991659,45.37611853,4510.1,4510.0,0.6466]
[1758074991858,4.57611853,4510.1,4510.0,0.6466]
[1758074995456,4.57611853,4510.1,4510.0,0.314]
[1758074997056,4.41461853,4510.1,4509.6,0.3164]
[1758074997258,0.5659,4509.7,4509.6,0.5134]
[1758074997450,0.7889,4509.7,4509.6,0.5134]
[1758074997652,0.6275,4509.7,4509.6,0.5134]
[1758074999154,0.6275,4509.7,4509.6,0.7247]
[1758074999362,0.223,4509.7,4509.6,0.7247]
[1758075002859,3.2078,4510.1,4510.0,0.1229]
[1758075003073,4.01019747,4510.1,4510.0,0.8405]
[1758075003457,4.22169747,4510.1,4510.0,0.8405]
[1758075003854,4.42269747,4510.1,4510.0,0.8405]
[1758075004061,4.58409747,4510.1,4510.0,0.8405]
[1758075004258,4.58409747,4510.1,4510.0,0.3135]
[1758075004655,0.2115,4509.7,4509.6,0.3135]
[1758075004864,0.4345,4509.7,4509.6,0.7176]
[1758075005356,0.223,4509.7,4509.6,0.7176]
[1758075005757,3.4193,4510.1,4510.0,0.8405]
[1758075005956,4.22197266,4510.1,4510.0,0.8405]
[1758075006358,3.78747266,4510.1,4510.0,0.8405]
[1758075006657,4.01047266,4510.1,4510.0,0.8405]
[1758075007960,3.78747266,4510.1,4510.0,0.8405]
[1758075008159,4.01047266,4510.1,4510.0,0.8405]
[1758075009661,4.22197266,4510.1,4510.0,0.8405]
[1758075012858,4.01047266,4510.1,4510.0,0.8405]
[1758075013059,3.2078,4510.7,4510.6,0.7176]
[1758075013253,3.2078,4510.7,4510.6,1.50423376]
[1758075013760,0.223,4510.8,4510.7,0.7176]
[1758075016566,0.4345,4510.8,4510.7,0.7176]
[1758075017564,0.223,4510.8,4510.7,0.7176]
[1758075019469,0.4345,4510.8,4510.7,0.7176]
[1758075020670,0.223,4510.8,4510.7,0.7176]
[1758075021571,3.2078,4511.3,4511.0,0.527]
[1758075021572,0.4345,4511.1,4511.0,0.527]
[1758075021770,0.4345,4511.1,4511.0,0.8405]
[1758075022064,0.6355,4511.1,4511.0,0.8405]
[1758075022471,0.5739,4511.1,4511.0,0.8405]
[1758075022670,0.7969,4511.1,4511.0,0.8405]
[1758075023270,0.5739,4511.1,4511.0,0.8405]
[1758075023474,0.7969,4511.1,4511.0,0.8405]
[1758075025275,0.6355,4511.1,4511.0,0.8405]
[1758075027578,0.7969,4511.1,4511.0,0.8405]
[1758075027871,1.37174512,4511.1,4511.0,0.8405]
[1758075028576,1.21034512,4511.1,4511.0,0.8405]
[1758075036281,3.2078,4512.4,4511.8,0.4071]
[1758075036486,3.2078,4512.4,4512.3,1.50273376]
[1758075037791,3.7678,4512.4,4512.3,0.309]
[1758075038487,3.7678,4512.4,4512.0,0.1288]
[1758075038678,0.56,4512.1,4512.0,0.309]
[1758075038884,0.783,4512.1,4512.0,0.309]
[1758075039083,0.783,4512.1,4512.0,0.6447]
[1758075039283,0.6222,4512.1,4512.0,0.6447]
[1758075039489,0.783,4512.1,4512.0,0.6447]
[1758075040082,0.56,4511.7,4511.0,3.3307]
[1758075040289,0.3992,4511.2,4511.1,0.5159]
[1758075040486,3.7678,4511.2,4511.1,0.5159]
[1758075040681,3.7678,4511.2,4511.1,0.309]
[1758075046994,3.7678,4511.2,4511.1,0.5159]
[1758075047194,3.607,4511.2,4511.1,0.5159]
[1758075051101,3.7678,4511.2,4511.1,0.5159]
[1758075052797,3.607,4511.2,4511.1,0.5159]
[1758075056699,3.7683,4511.2,4511.1,0.5159]
[1758075056998,3.7683,4511.2,4511.1,0.309]
[1758075060398,3.2078,4511.8,4511.5,0.1287]
[1758075060597,3.2078,4512.3,4512.2,0.7239]
[1758075060893,3.2078,4512.3,4512.2,1.51053376]
[1758075061099,3.4308,4512.3,4512.2,1.51053376]
[1758075061402,3.625,4512.3,4512.2,1.51053376]
[1758075061602,3.9898,4512.3,4512.2,0.5225]
[1758075061900,4.77643376,4512.3,4512.0,0.1287]
[1758075062089,0.1613,4512.2,4512.1,0.5225]
[1758075062294,0.3977,4512.2,4512.1,0.5225]
[1758075062493,0.559,4512.2,4512.1,0.5225]
[1758075062697,0.3977,4512.2,4512.1,0.7239]
[1758075062896,3.2078,4512.3,4512.2,0.3204]
[1758075063091,3.4308,4512.3,4512.2,0.7239]
[1758075064701,0.4172,4512.3,4512.2,0.7239]
[1758075064902,0.4172,4512.3,4512.2,1.51053376]
[1758075066392,0.223,4512.3,4512.2,1.51053376]
[1758075067797,0.223,4512.3,4512.2,1.666794]
[1758075070999,3.2078,4512.6,4512.2,1.346394]
[1758075071203,3.402,4512.6,4512.5,1.795494]
[1758075071402,3.625,4512.6,4512.5,1.795494]
[1758075073202,3.402,4512.6,4512.5,1.795494]
[1758075073403,3.625,4512.6,4512.5,1.795494]
[1758075074106,3.4308,4512.6,4512.5,1.795494]
[1758075074707,3.625,4512.6,4512.5,1.795494]
[1758075076006,0.4172,4512.6,4512.5,1.795494]